Workbook

Sheet 定積分シンプソン
B2: シンプソン公式による定積分の計算(Integral Calculator)
F3: 【使用法】
B4: 関数 ｆ（ｘ）＝① | C4: =SIN(C5) -> 0.03141075908 | F4: １．黄色セルの①②③④を入力
B5: 変数 ｘ＝ | C5: 3.110176727 | F5: ２．Startボタンをクリック
B6: 下限 a＝② | C6: 0 | F6: ３．結果は積分結果=⑤に表示
B7: 上限 b＝③ | C7: =C19 -> 3.141592654
B8: 分割数＝④ | C8: 100 | F8: 【参考グラフ】
B10: 積分結果＝⑤ | C10: 2.000000001
B19: cf. π＝ | C19: =PI() -> 3.141592654
B20: e＝ | C20: =EXP(1) -> 2.718281828
B24: 【具体的使用例】 | E24: ｘ | F24: =SIN(F25) -> 0 | G24: 0.1736481777 | H24: 0.3420201433 | I24: 0.5 | J24: 0.6427876097 | K24: 0.7660444431 | L24: 0.8660254038 | M24: 0.9396926208 | N24: 0.984807753 | O24: 1 | P24: 0.984807753 | Q24: 0.9396926208 | R24: 0.8660254038 | S24: 0.7660444431 | T24: 0.6427876097 | U24: 0.5 | V24: 0.3420201433 | W24: 0.1736481777 | X24: 1.225148455e-16
F25: =C6 -> 0 | G25: =$F$25+($C$7-$C$6)/18*1 -> 0.1745329252 | H25: =$F$25+($C$7-$C$6)/18*2 -> 0.3490658504 | I25: =$F$25+($C$7-$C$6)/18*3 -> 0.5235987756 | J25: =$F$25+($C$7-$C$6)/18*4 -> 0.6981317008 | K25: =$F$25+($C$7-$C$6)/18*5 -> 0.872664626 | L25: =$F$25+($C$7-$C$6)/18*6 -> 1.047197551 | M25: =$F$25+($C$7-$C$6)/18*7 -> 1.221730476 | N25: =$F$25+($C$7-$C$6)/18*8 -> 1.396263402 | O25: =$F$25+($C$7-$C$6)/18*9 -> 1.570796327 | P25: =$F$25+($C$7-$C$6)/18*10 -> 1.745329252 | Q25: =$F$25+($C$7-$C$6)/18*11 -> 1.919862177 | R25: =$F$25+($C$7-$C$6)/18*12 -> 2.094395102 | S25: =$F$25+($C$7-$C$6)/18*13 -> 2.268928028 | T25: =$F$25+($C$7-$C$6)/18*14 -> 2.443460953 | U25: =$F$25+($C$7-$C$6)/18*15 -> 2.617993878 | V25: =$F$25+($C$7-$C$6)/18*16 -> 2.792526803 | W25: =$F$25+($C$7-$C$6)/18*17 -> 2.967059728 | X25: =$F$25+($C$7-$C$6)/18*18 -> 3.141592654
C26: の定積分
B28: １．黄色セルの①②③④を入力
B29: 関数 ｆ（ｘ）＝① | C29: sin(c5) | E29: 求める関数、ｘはC5を指定
B30: 変数 ｘ＝ | C30: 0 | E30: 入力不要
B31: 下限 a＝② | C31: 0 | E31: 下限は０
B32: 上限 b＝③ | C32: =C19 -> 3.141592654 | E32: 上限はπ
B33: 分割数＝④ | C33: 100 | E33: 通常100であれば誤差はほとんどなし
B35: ２．Startボタンをクリック
B39: ３．結果は積分結果=⑤に表示
B40: 積分結果＝⑤ | C40: 2.000000001
B41: 計算終了メッセージと参考グラフも表示される
B51: 【例題】
C53: の定積分
B55: 関数 ｆ（ｘ）＝①
I57: 積分結果は、0.5＝＝＞
